Cogmind - Beta 17.1 @@@ ROGUE MODE // 2026.09.10 @ 21:24:12 Player: puppuppit Result: Destroyed by H-61 Shepherd with Heavy Assault Cannon Performance ------------- Evolutions (4) 2000 Regions Visited (20) 4000 Robots Destroyed (604) 3020 Value Destroyed (23219) 23219 Prototype IDs (41) 820 Alien Tech Used (0) 0 Bonus (15374) 15374 TOTAL SCORE: 48433 Bonus ------- Triggered High Security 500 High Alert Combat Kills 10883 Follower Combat Kills 3196 Hunted by Unchained 500 Entered Garrisons 600 Network Hubs Disabled 200 Built Enhanced Grunts 300 Met R17 at Cetus 500 Friendly Fire -1305 Cogmind --------- Core Integrity 0/850 Matter 259/300 Energy 350/350 System Corruption 17% Temperature Cool (0) Movement Walking (105) Location -6/Hub_04(d) Parts ------- > --- POWER (1) -------- Quantum Reactor > --- PROPULSION (4) --- Enhanced Flexi-carbon Leg Enhanced Flexi-carbon Leg Advanced VSS Leg Advanced VSS Leg > --- UTILITY (6) ------ High-capacity Storage Unit Experimental Optical Array Improved Signal Interpreter Experimental Thermal Shield Improved Hacking Suite Improved System Shield > --- WEAPON (4) ------- Magnetic Acceleration Cannon > --- INVENTORY (20) --- Quantum Reactor Enhanced Flexi-carbon Leg Enhanced Flexi-carbon Leg Enhanced Flexi-carbon Leg Experimental Cooling System Experimental Cooling System Matter Compressor (250) Matter Compressor (250) Centrium Medium Armor Plating Centrium Medium Armor Plating Centrium Medium Armor Plating High-powered Tractor Beam Coil Gun KE Penetrator Advanced KE Penetrator Heavy Flak Cannon Hellfire Missile Launcher Hellfire Missile Launcher Vibroblade PL-3XN's Ring of Power Peak State ------------ > --- POWER ------------ Quantum Reactor > --- PROPULSION ------- Enhanced Flexi-carbon Leg Enhanced Flexi-carbon Leg Enhanced Flexi-carbon Leg Advanced VSS Leg > --- UTILITY ---------- High-capacity Storage Unit Experimental Optical Array Centrium Medium Armor Plating Experimental Thermal Shield Improved Hacking Suite Improved System Shield > --- WEAPON ----------- KE Penetrator Advanced KE Penetrator Advanced KE Penetrator Advanced KE Penetrator > --- INVENTORY -------- Quantum Reactor Enhanced Flexi-carbon Leg Enhanced Flexi-carbon Leg Advanced VSS Leg Enhanced Biometal Leg Experimental Cooling System Experimental Cooling System Matter Compressor Matter Compressor Centrium Medium Armor Plating Centrium Medium Armor Plating High-powered Tractor Beam Advanced KE Penetrator Magnetic Acceleration Cannon Hellfire Missile Launcher Hellfire Missile Launcher Vibroblade PL-3XN's Ring of Power [Rating: 117] Favorites ----------- Power Reinforced Deuterium Engine Engine Reinforced Deuterium Engine Power Core Light Nuclear Core Reactor Cold Fusion Reactor Propulsion Light Treads Treads Light Treads Leg Enhanced Flexi-carbon Leg Wheel Armored Huge Wheel Hover Unit Combat Airjet Flight Unit Flight Unit Utility High-capacity Storage Unit Device Sensor Drone Bay Storage High-capacity Storage Unit Processor Advanced Targeting Computer Hackware Hacking Suite Protection Medium Reactive Plating Weapon Heavy Assault Rifle Energy Gun Medium Laser Energy Cannon Cooled Particle Cannon Ballistic Gun Heavy Assault Rifle Ballistic Cannon Heavy Mass Driver Launcher Hellfire Missile Launcher Slashing Weapon Vibroblade Build | -11 -10 -10 -9 -9 -9 -8 -8 -8 -7 -7 -7 -7 -7 -6 -6 -6 -6 -6 -6 -6 ------- Run | Yrd Mat Min Mat Min Exi Min Mat Gar Fac Gar Fac Gar Fac Fac Was Fac Ext Cet Arc Hub Slots Evolved 8 | . . . 2 . . . 2 . 2 . . . . 2 . . . . . . Power . | . . . . . . . . . . . . . . . . . . . . . Propulsion 2 | . . . . . . . . . 2 . . . . . . . . . . . Utility 4 | . . . . . . . 2 . . . . . . 2 . . . . . . Weapon 2 | . . . 2 . . . . . . . . . . . . . . . . . Parts Attached 247 | 7 5 1 21 1 2 7 36 14 22 27 . 4 1 52 3 6 8 10 12 8 Power 29 | 1 1 1 1 . . 2 6 1 4 2 . . . 6 . 1 2 . 1 . Engine 22 | 1 1 . 1 . . 2 5 1 3 2 . . . 4 . . 2 . . . Core 4 | . . 1 . . . . 1 . 1 . . . . . . 1 . . . . Reactor 3 | . . . . . . . . . . . . . . 2 . . . . 1 . Propulsion 54 | 2 . . 6 . 1 1 7 4 9 9 . . . 7 1 . . 3 3 1 Treads 33 | 2 . . 6 . 1 . 6 4 6 7 . . . 1 . . . . . . Leg 14 | . . . . . . . . . . . . . . 6 1 . . 3 3 1 Wheel 4 | . . . . . . . . . 2 2 . . . . . . . . . . Hover 2 | . . . . . . . 1 . 1 . . . . . . . . . . . Flight 1 | . . . . . . 1 . . . . . . . . . . . . . . Utility 89 | 2 3 . 5 1 1 3 12 3 4 9 . 4 . 22 2 2 1 4 7 4 Device 41 | 1 1 . . 1 . . 7 1 1 5 . 3 . 11 1 1 . 3 5 . Storage 8 | 1 1 . 1 . 1 . . . 1 . . . . 2 . . . . . 1 Processor 12 | . . . . . . . 1 1 . 2 . 1 . 6 . . . . . 1 Hackware 14 | . 1 . 3 . . 1 1 1 1 . . . . 1 . 1 1 . 2 1 Protection 14 | . . . 1 . . 2 3 . 1 2 . . . 2 1 . . 1 . 1 Artifact . | . . . . . . . . . . . . . . . . . . . . . Weapon 75 | 2 1 . 9 . . 1 11 6 5 7 . . 1 17 . 3 5 3 1 3 Energy Gun 7 | 1 . . . . . . . 1 . 2 . . . 3 . . . . . . Energy Cannon 4 | . . . . . . . . . . 1 . . . 3 . . . . . . Ballistic Gun 34 | 1 1 . 6 . . 1 7 5 3 2 . . . . . . 2 3 1 2 Ballistic Cannon 17 | . . . . . . . 3 . 1 2 . . 1 5 . 2 2 . . 1 Launcher 11 | . . . 2 . . . 1 . 1 . . . . 5 . 1 1 . . . Special Weapon . | . . . . . . . . . . . . . . . . . . . . . Impact Weapon . | . . . . . . . . . . . . . . . . . . . . . Slashing Weapon 2 | . . . 1 . . . . . . . . . . 1 . . . . . . Piercing Weapon . | . . . . . . . . . . . . . . . . . . . . . Special Melee Weapon . | . . . . . . . . . . . . . . . . . . . . . Unidentified Prototypes 20 | . . . . 1 . . 2 . . 2 . . . 12 . . . 3 . . Corrupted Parts 6 | . . . . . . . . . 3 1 . . . . . . 1 1 . . System Corruption 40 | . . . . . . . . . 14 10 . . . . . . 7 9 . . Parts Lost 81 | . 2 . 1 . . 2 10 3 19 14 . 2 1 11 . . 7 3 . 6 Power 5 | . 1 . . . . 1 1 . . 1 . . . 1 . . . . . . Propulsion 18 | . . . . . . . 2 2 5 4 . . . 2 . . 2 1 . . Utility 24 | . 1 . . . . . 4 . 4 4 . 1 . 7 . . . . . 3 Weapon 34 | . . . 1 . . 1 3 1 10 5 . 1 1 1 . . 5 2 . 3 Highest Loss Streak 9 | . 1 . 1 . . 2 9 2 8 8 . 1 1 3 . . 5 3 . 3 To Critical Strikes 3 | . . . . . . 1 . . . . . . . . . . . 2 . . Average Backups 16 | . 7 13 14 14 15 19 19 18 17 15 16 15 15 18 18 18 17 15 18 17 Power 1 | . . . . 1 2 4 1 1 1 1 1 1 1 . 1 1 2 2 1 1 Propulsion 2 | . . . 1 2 1 2 2 2 1 2 3 3 3 3 3 3 3 1 2 3 Utility 8 | . 4 9 8 7 8 9 10 8 6 5 7 7 9 9 8 7 8 7 9 8 Weapon 4 | . 2 4 3 4 4 3 4 6 7 5 5 4 2 4 6 6 3 3 4 5 Tool/Special . | . . . . . . . . . . . . . . . . . . . . . Unused Backups 69 | . 3 . 12 1 1 1 17 2 2 8 . . 1 10 1 . 1 3 2 4 Power 8 | . . . 1 . . . 3 . 1 . . . . 1 . . . 1 . 1 Propulsion 7 | . . . . . . . 3 . . 1 . . . 2 . . . . 1 . Utility 34 | . 3 . 8 1 1 . 8 1 1 1 . . 1 4 . . 1 2 1 1 Weapon 20 | . . . 3 . . 1 3 1 . 6 . . . 3 1 . . . . 2 Tool/Special . | . . . . . . . . . . . . . . . . . . . . . Average Slot Usage (%) 91 | . 96 94 99 100 63 99 99 97 88 72 69 69 68 86 93 93 99 93 99 99 Engine 7 | . 11 . 8 11 11 10 8 9 2 6 7 7 7 3 6 5 6 6 5 . Treads 14 | . 27 28 22 22 22 22 17 18 23 10 15 15 15 4 . . . . . . Leg 6 | . . . . . . . . . . . . . . 16 26 26 25 22 26 26 Device 8 | . 8 . . 9 11 3 15 14 7 4 15 10 14 11 12 6 . 6 8 3 Storage 8 | . 14 14 10 11 11 11 9 9 7 7 7 7 7 6 6 6 6 6 6 6 Processor 6 | . . . . . . . 1 12 7 10 7 11 7 13 13 13 13 13 13 6 Hackware 5 | . 5 14 11 . . 1 7 . . . . . . 5 6 12 19 6 8 18 Protection 1 | . . . . 1 . 6 1 . 1 5 . . . 1 . . . 5 1 3 Ballistic Gun 20 | . 15 28 43 44 8 43 32 24 23 5 . . . . . . . 18 25 25 Ballistic Cannon 7 | . . . . . . . 3 7 1 8 15 15 14 17 18 20 23 5 . . Peak Build Rating 117 | 9 10 14 20 25 26 26 38 41 43 80 84 84 84 103 102 104 100 114 115 117 Average Rating 52 | 6 9 12 17 23 18 20 34 36 34 62 84 80 83 93 98 99 91 99 107 113 On Entrance 54 | . 9 9 14 20 24 26 19 37 38 24 80 84 82 84 96 98 95 80 114 110 Avg Prop Armor Cover (%) 6 | . . . . . . . . . 4 8 . . . 5 4 . . 4 . . Naked Turns . | . . . . . . . . . . . . . . . . . . . . . Heaviest Build 124 | 14 28 28 40 54 74 74 86 72 96 116 110 116 110 124 93 105 93 102 86 95 Greatest Support 150 | 40 40 40 40 40 40 40 43 43 80 150 150 150 150 150 94 94 94 94 104 102 Greatest Overweight (x) 6 | . . . . 1 1 1 3 1 6 3 . . . 1 1 1 1 1 . . Average Overweight (x) . | . . . . 1 1 1 1 1 . . . . . . . . . . . . Largest Inventory Capacity 20 | 8 15 15 15 15 20 20 20 20 20 20 20 20 20 20 20 20 20 20 20 20 Average Capacity 18 | 7 9 15 14 15 17 20 20 20 20 20 20 20 20 20 20 20 20 20 20 20 Most Carried 20 | 2 12 15 15 15 19 20 20 20 20 20 20 20 20 20 20 20 20 20 20 20 Average Carried 17 | . 7 13 14 14 15 19 19 19 17 18 20 19 19 19 19 19 18 16 19 18 Final Capacity 20 | 8 15 15 15 15 20 20 20 20 20 20 20 20 20 20 20 20 20 20 20 20 Final Carried 20 | 2 12 15 15 15 19 20 19 20 15 20 20 20 20 20 20 20 19 20 20 20 Class Distribution -------------------- 30% | Gunner 29% | Scavenger-Gunner 9% | Mutant 7% | Scavenger-Skirmisher 6% | Hacker-Gunner 6% | Scavenger-Tank 4% | Tank Dominant Class ---------------- Mutant | -10/Materials Mutant | -10/Mines Scavenger-Gunner | -9/Materials Gunner | -9/Mines Mutant | -9/Exiles Scavenger-Tank | -8/Mines Scavenger-Skirmisher | -8/Materials Scavenger-Gunner | -8/Garrison Scavenger-Gunner | -7/Factory Tank | -7/Garrison Gunner | -7/Factory Scavenger-Gunner | -7/Garrison Scavenger-Gunner | -7/Factory Gunner | -6/Factory Gunner | -6/Waste Hacker-Gunner | -6/Factory Hacker-Gunner | -6/Extension Scavenger-Gunner | -6/Cetus Scavenger-Gunner | -6/Archives Scavenger-Tank | -6/Hub_04(d) Resources | -11 -10 -10 -9 -9 -9 -8 -8 -8 -7 -7 -7 -7 -7 -6 -6 -6 -6 -6 -6 -6 ----------- Run | Yrd Mat Min Mat Min Exi Min Mat Gar Fac Gar Fac Gar Fac Fac Was Fac Ext Cet Arc Hub Matter Collected 26387 | 329 1007 85 1799 217 50 381 2511 1186 1914 2193 132 823 456 7698 673 760 2105 638 574 856 Remotely 4454 | . . . . . . . . . . . . . . 3791 663 . . . . . Salvage Created 23889 | 175 740 79 1887 241 . 287 2580 996 2293 1983 108 457 166 5989 916 414 2154 431 463 1530 Parts 1041 | 16 42 5 110 15 . 15 137 52 119 67 3 32 14 206 3 10 65 26 33 71 Haulers Intercepted 22 | . 2 . 4 . . . 5 . 2 . . . . 8 . . . . . 1 Recyclers Shooed 32 | . 2 . 4 . . 1 2 . . . . . . 16 . 6 . . . 1 Parts Field Recycled . | . . . . . . . . . . . . . . . . . . . . . Retrieved Matter . | . . . . . . . . . . . . . . . . . . . . . Parts Self-Destructed . | . . . . . . . . . . . . . . . . . . . . . Prevented . | . . . . . . . . . . . . . . . . . . . . . Parts Restored . | . . . . . . . . . . . . . . . . . . . . . Kills | -11 -10 -10 -9 -9 -9 -8 -8 -8 -7 -7 -7 -7 -7 -6 -6 -6 -6 -6 -6 -6 ------- Run | Yrd Mat Min Mat Min Exi Min Mat Gar Fac Gar Fac Gar Fac Fac Was Fac Ext Cet Arc Hub Combat Hostiles Destroyed 395 | . 15 2 22 3 . 6 50 34 42 30 . 15 6 89 5 5 48 5 2 16 Guns 122 | . 15 2 18 3 . 3 28 11 22 1 . . . . . . . 1 2 16 Cannons 129 | . . . . . . . 5 10 5 16 . 15 6 45 2 5 16 4 . . AOE 144 | . . . 4 . . 3 17 13 15 13 . . . 44 3 . 32 . . . Classes Destroyed 23 | 3 5 . 4 . . 1 4 . 2 1 . . 1 1 1 . . . . . Worker 51 | 2 2 . 9 1 . 1 6 . 5 . . . 1 15 . 5 2 . . 2 Builder 25 | . 1 . 3 2 . 1 . . 3 . . . 1 12 . 1 . . . 1 Tunneler 7 | 2 . . . . . 1 . . . . . . . 2 . . 1 . . 1 Hauler 22 | . 2 . 4 . . . 5 . 2 . . . . 8 . . . . . 1 Recycler 60 | 1 2 . 8 1 . 2 4 . 2 . 2 . 2 27 . 2 5 . . 2 Mechanic 10 | . . . 1 . . . 2 . . . . . . 5 . . 2 . . . Operator 17 | . 1 . 2 . . . . . 1 . . . . 3 . . . . 9 1 Watcher 19 | . . . 3 . . . 4 . . . 1 1 . 5 . . 2 1 . 2 Swarmer 69 | . 6 . 9 . . 3 15 6 8 8 . 4 . 9 . . 1 . . . Saboteur 2 | . . . . . . . . . . . . . . 1 . . 1 . . . Grunt 154 | . 9 2 3 3 . 2 18 14 20 12 . . . 39 . 4 19 . . 9 Brawler 28 | . . . . . . . 3 4 7 1 . 3 . 7 . . 2 . . 1 Duelist 14 | . . . 1 . . . 2 1 1 1 . 1 . 4 . . 3 . . . Protector 7 | . . . . . . . . . 2 . . . . 2 . . 2 . . 1 Sentry 47 | . . . 9 . . . 8 5 2 3 . 3 . 3 . . 10 . 2 2 Demolisher 4 | . . . . . . . 1 . . . . . 2 . . . 1 . . . Specialist 10 | . . . . . . . 1 2 . . . . . 1 . . 4 . . 2 Hunter 19 | . . . . . . 1 1 2 . 4 . . . 8 . . 2 . . 1 Programmer 25 | . . . . . . . . . 2 . . 4 2 14 . 1 2 . . . Heavy 2 | . . . . . . . 1 . . . . . . 1 . . . . . . Behemoth 2 | . . . . . . . . . . 1 . . . . . . 1 . . . Compactor 5 | . . . . . . . . . . . . . . . 5 . . . . . Cetus Guard 5 | . . . . . . . . . . . . . . . . . . 5 . . Enhanced Grunt 1 | . . . . . . . . . . . . . . . . . . 1 . . Assembled 2 | . . . . . . . . . . . . . 2 . . . . . . . Surgeon 1 | . . . . . . . . . . . . . . . . 1 . . . . Savage 1 | . . . . . . . . . . . . . . . . . 1 . . . Guerrilla 3 | . . . . . . . . . . . . . . . . . 3 . . . Infiltrator 1 | . . . . . . . . . . . . . . . . . . . . 1 Best Kill Streak 23 | 3 3 1 5 3 . 3 8 3 15 10 1 4 3 10 3 4 23 2 2 6 Combat Bots Only 22 | . 3 1 4 3 . 3 8 3 13 10 . 4 3 9 3 1 22 2 1 5 Max Kills in Single Turn 7 | 1 2 1 4 1 . 3 4 3 3 2 1 2 2 5 1 2 7 2 1 3 Gunslinging 1 | . 1 . 1 . . . . 1 1 . . . . . . . . . . 1 Exploded 7 | . . . 3 . . 3 4 3 3 2 . . . 4 1 . 7 . . . Melee . | . . . . . . . . . . . . . . . . . . . . . Uniques/NPCs Destroyed . | . . . . . . . . . . . . . . . . . . . . . Combat | -11 -10 -10 -9 -9 -9 -8 -8 -8 -7 -7 -7 -7 -7 -6 -6 -6 -6 -6 -6 -6 -------- Run | Yrd Mat Min Mat Min Exi Min Mat Gar Fac Gar Fac Gar Fac Fac Was Fac Ext Cet Arc Hub Hostile Shots Fired 1860 | . 71 6 74 18 . 36 199 87 268 185 . 105 30 281 . 47 280 38 11 124 Missed 605 | . 17 2 26 3 . 12 55 19 94 70 . 26 3 93 . 14 104 18 5 44 Hits 1255 | . 54 4 48 15 . 24 144 68 174 115 . 79 27 188 . 33 176 20 6 80 Melee 43 | . . . . . . 1 8 1 15 5 . 7 4 1 . . 1 . . . Projectile 1212 | . 54 4 48 15 . 23 136 67 159 110 . 72 23 187 . 33 175 20 6 80 AOE 20 | . . . . . . . 3 . . . . . 10 . . . 7 . . . Critical Strikes 47 | . . 1 . . . 2 7 4 10 6 . 2 . 5 . . 3 4 1 2 Actively Blocked 2 | . . . . . . . . . 1 1 . . . . . . . . . . Damage Taken 18647 | . 666 51 673 178 . 349 2483 1095 2479 1701 . 1014 626 3115 . 703 1757 376 137 1244 Core 2128 | . 68 11 69 10 . . 304 115 199 313 . 132 31 290 . 96 191 37 . 262 Absorbed by Shields 550 | . . . . . . . . . . . . . . 124 . . 418 8 . . Reduced by Siege Mode 50 | . . . . . . . . . . . . 31 11 8 . . . . . . Redirected to Shielding 262 | . . . . . . 6 101 . 102 53 . . . . . . . . . . Ignored by Resistances 917 | . . . 4 29 . 26 281 8 94 142 . 29 6 31 . . 54 179 . 34 Regen/Repaired (Parts) 1495 | . 165 . 277 . . . 233 . . . . . . 421 100 299 . . . . Core Remaining (%) 54 | 100 . 68 . . . 80 . 23 . . . . 3 . . . . . . . Volleys Fired 1214 | 19 94 9 92 12 . 21 105 72 96 158 6 44 18 247 14 35 77 29 26 40 Largest 4 | 2 2 2 4 4 . 4 4 4 4 3 2 2 2 4 3 4 4 4 4 4 Hottest 210 | 70 70 40 92 92 . 102 139 139 134 140 130 130 130 210 165 160 188 149 138 138 Shots Fired 3189 | 27 188 18 349 47 . 68 377 186 290 255 8 72 32 596 37 101 226 77 105 130 Gun 1724 | 27 188 18 346 47 . 59 330 99 221 113 . . . 7 . . . 43 105 121 Cannon 1302 | . . . . . . . 36 70 41 125 8 72 32 541 26 101 210 34 . 6 Launcher 163 | . . . 3 . . 9 11 17 28 17 . . . 48 11 . 16 . . 3 Special . | . . . . . . . . . . . . . . . . . . . . . Kinetic 2811 | 19 104 18 346 47 . 59 366 166 262 169 8 72 32 511 26 101 196 77 105 127 Thermal 203 | 8 84 . . . . . . 3 . 63 . . . 31 . . 14 . . . Explosive 135 | . . . 3 . . 9 11 17 5 12 . . . 48 11 . 16 . . 3 Electromagnetic 40 | . . . . . . . . . 23 11 . . . 6 . . . . . . Robot Hit Streak 26 | 4 16 11 17 6 . 7 26 23 20 19 5 5 8 13 7 6 7 3 6 10 Robot Miss Streak 9 | 3 4 3 9 3 . 3 5 3 5 4 1 4 2 6 2 4 7 8 4 6 Penetration Max 2 | . . . . . . . . 1 1 1 . 1 1 1 . . 2 1 1 1 Secondary Targets 22 | . 2 1 4 1 . . 4 2 5 . . . . . . . . . . 3 Max Gunslinging Chain 1 | . 1 1 1 1 . . 1 1 1 . . . . . . . . . . 1 Shots Hit Robots 1838 | 17 122 11 194 25 . 37 232 120 186 169 5 30 16 359 21 49 102 33 45 65 Core Hits 1076 | 8 43 6 77 12 . 21 122 62 122 97 2 12 6 242 11 20 125 16 22 50 Critical Kills 31 | . . . 1 . . 1 1 . 1 . . . . . . . 5 5 5 12 Critical Parts Destroyed 26 | . . . . . . . 1 1 2 4 . . . . . . 4 6 2 6 Critical Strikes 130 | . 8 . 1 . . 1 3 3 5 9 . 6 4 27 1 6 17 13 7 19 Burn 8 | . 8 . . . . . . . . . . . . . . . . . . . Destroy 60 | . . . 1 . . 1 2 1 3 4 . . . . . . 9 13 7 19 Blast 62 | . . . . . . . 1 2 2 5 . 6 4 27 1 6 8 . . . Melee Attacks 4 | . . . 2 . . . . . . . . . . . . . . . . 2 Impact . | . . . . . . . . . . . . . . . . . . . . . Slashing 4 | . . . 2 . . . . . . . . . . . . . . . . 2 Piercing . | . . . . . . . . . . . . . . . . . . . . . Sneak Attacks . | . . . . . . . . . . . . . . . . . . . . . Combat Hostiles . | . . . . . . . . . . . . . . . . . . . . . Follow-up Attacks . | . . . . . . . . . . . . . . . . . . . . . Damage Inflicted 77391 | 160 1308 119 3452 409 . 1158 5866 3686 6356 6536 359 2407 1304 24011 2521 2257 9760 1077 1390 3255 Guns 19845 | 160 1308 119 2818 409 . 476 3693 1235 2982 2121 . . . 58 . . . 638 1390 2438 Cannons 31400 | . . . . . . . 642 1287 1197 3013 359 2407 1269 14443 615 2248 3481 439 . . Explosions 26087 | . . . 634 . . 676 1531 1164 2177 1402 . . 35 9510 1906 . 6266 . . 786 Melee . | . . . . . . . . . . . . . . . . . . . . . Ramming 59 | . . . . . . 6 . . . . . . . . . 9 13 . . 31 Kinetic 48187 | 86 654 119 2818 409 . 476 4335 2489 4179 3850 359 2407 1269 13754 615 2248 3215 1077 1390 2438 Thermal 3836 | 74 654 . . . . . . 33 547 1248 . . . 1014 . . 266 . . . Explosive 23485 | . . . 634 . . 676 1531 1164 586 1203 . . 35 9149 1906 . 6266 . . 335 Electromagnetic 1824 | . . . . . . . . . 1044 235 . . . 94 . . . . . 451 Impact . | . . . . . . . . . . . . . . . . . . . . . Slashing . | . . . . . . . . . . . . . . . . . . . . . Piercing . | . . . . . . . . . . . . . . . . . . . . . Highest Corruption 54 | . . . 1 1 1 1 2 2 28 41 41 54 54 7 29 29 41 50 50 17 Average Corruption 16 | . . . 1 1 1 1 2 2 14 40 41 48 54 4 19 29 34 47 33 16 Corruption Purged 34 | . . . . . . . . . . . . . . . . . . . 34 . Corruption Blocked . | . . . . . . . . . . . . . . . . . . . . . Effects 689 | . . . 8 10 5 8 7 36 43 132 21 43 34 83 12 48 80 42 32 45 Message Errors 162 | . . . 1 4 1 1 4 15 11 34 5 12 5 13 2 6 17 9 8 14 Matter Fused 138 | . . . 2 3 1 1 . 3 10 24 8 7 7 28 2 10 9 5 7 11 Heat Flow Errors 66 | . . . 3 1 1 1 . 4 3 9 2 3 4 8 2 5 9 4 1 6 Energy Discharges 60 | . . . 1 . 2 1 1 6 2 10 1 4 5 4 1 8 6 3 3 2 Parts Rejected 8 | . . . . . . . . . 2 1 . . . . . . 2 2 . 1 Parts Fused 5 | . . . . . . 1 . . 1 . 1 1 . . . . 1 . . . Data Loss (minor) 75 | . . . 1 1 . 2 1 2 1 20 1 5 2 10 3 6 7 7 3 3 Data Loss (major) 33 | . . . . . . . . 2 1 7 . . 1 8 . 6 5 . 1 2 Misfires 31 | . . . . . . 1 . 2 3 6 2 2 3 1 1 . 4 1 4 1 Alerts 15 | . . . . . . . . . 2 3 . 2 1 2 1 . 3 . 1 . Misdirections 10 | . . . . . . . . . 1 . . . 1 . . . 3 3 1 1 Weapon Failures 86 | . . . . 1 . . 1 2 6 18 1 7 5 9 . 7 14 8 3 4 Overload Shots 1 | . . . . . . . . . . . . . . . . . 1 . . . Overflow Damage 3771 | . . . 31 . . 52 57 38 182 86 123 236 486 1855 88 203 334 . . . Projectiles 2681 | . . . . . . . . 18 102 76 123 236 486 1384 . 203 53 . . . Explosions 1090 | . . . 31 . . 52 57 20 80 10 . . . 471 88 . 281 . . . Melee . | . . . . . . . . . . . . . . . . . . . . . Knockbacks 178 | . . . . . . . 3 20 11 6 1 8 7 58 1 29 31 3 . . Impact . | . . . . . . . . . . . . . . . . . . . . . Kinetic 166 | . . . . . . . 2 19 11 6 1 8 7 57 1 25 27 2 . . Secondary 12 | . . . . . . . 1 1 . . . . . 1 . 4 4 1 . . Self-Inflicted Damage 546 | . . . 98 . . 24 . 50 41 130 . . . 32 . . 87 . . 84 Shots 13 | . . . 1 . . 1 . 2 1 5 . . . 1 . . 1 . . 1 Rammed 1 | . . . . . . 1 . . . . . . . . . . . . . . Targets Rammed 6 | . . . . . . 1 . . . . . . . . . 1 1 . . 3 Kicked 5 | . . . . . . . . . . . . . . . . 1 1 . . 3 Crushed . | . . . . . . . . . . . . . . . . . . . . . Highest Temperature 406 | 110 218 26 234 251 172 223 321 268 325 336 184 369 290 388 364 269 318 174 318 406 Average Temperature 80 | 56 53 7 40 87 86 91 85 49 104 73 46 118 105 72 107 85 101 75 140 94 Received Heat Transfer 4862 | . 219 51 156 117 . 135 891 405 906 429 . 60 . 612 . 159 392 . . 330 Effects 22 | . . . 1 . . . . . 3 . . 4 1 6 1 3 3 . . . Energy Bleed 4 | . . . . . . . . . . . . 2 1 . . 1 . . . . Interference 14 | . . . 1 . . . . . 3 . . . . 5 . 2 3 . . . Matter Decay 3 | . . . . . . . . . . . . 2 . 1 . . . . . . Short Circuit 1 | . . . . . . . . . . . . . . . 1 . . . . . Siege Activations 6 | . . . . . . . . . . . . 3 2 1 . . . . . . Total Turns 81 | . . . . . . . . . . . . 51 23 7 . . . . . . Longest Duration 40 | . . . . . . . . . . . . 40 18 7 . . . . . . Martial Activations . | . . . . . . . . . . . . . . . . . . . . . Shielding Activations . | . . . . . . . . . . . . . . . . . . . . . Robots Disrupted . | . . . . . . . . . . . . . . . . . . . . . Combat Hostiles . | . . . . . . . . . . . . . . . . . . . . . Robots Corrupted 1 | . . . . . . . . . . . . . . 1 . . . . . . Combat Hostiles . | . . . . . . . . . . . . . . . . . . . . . Parts Fried 10 | . 1 . . . . . . . 1 . . . . 1 . 2 3 . . 2 Impact Corruptions 5 | . . . . . . . . . . . . . . 3 . 2 . . . . Robots Melted . | . . . . . . . . . . . . . . . . . . . . . Combat Hostiles . | . . . . . . . . . . . . . . . . . . . . . Parts Melted 10 | . 5 . . . . . . . . . . . . 3 . . 2 . . . Heat Transferred 6394 | 222 2479 . . . . . . 74 531 1702 . . . 1071 . . 315 . . . Parts Sabotaged . | . . . . . . . . . . . . . . . . . . . . . Parts Stolen . | . . . . . . . . . . . . . . . . . . . . . Parts Stripped . | . . . . . . . . . . . . . . . . . . . . . Power Chain Reactions 14 | . . . . . . . . . 14 . . . . . . . . . . . Alert | -11 -10 -10 -9 -9 -9 -8 -8 -8 -7 -7 -7 -7 -7 -6 -6 -6 -6 -6 -6 -6 ------- Run | Yrd Mat Min Mat Min Exi Min Mat Gar Fac Gar Fac Gar Fac Fac Was Fac Ext Cet Arc Hub Maximum Alert Level 5 | . . . 1 1 . . 3 5 5 5 4 4 3 5 3 5 5 5 3 3 Low Security (%) 32 | 100 100 100 94 98 . 100 30 . . . . . . 7 . . . . . . Level 1 9 | . . . 5 1 . . 33 . . . . . . 25 . . . . . 4 Level 2 12 | . . . . . . . 33 11 . . . . 58 12 . 44 . . . 51 Level 3 12 | . . . . . . . 2 28 . . . 15 41 9 100 14 56 . 100 43 Level 4 14 | . . . . . . . . 20 69 17 100 84 . 19 . 31 20 . . . Level 5 17 | . . . . . . . . 39 30 82 . . . 26 . 9 1 100 . . High Security . | . . . . . . . . . . . . . . . . . 21 . . . Max Security . | . . . . . . . . . . . . . . . . . . . . . Sterilizations 1 | . . . . . . . 1 . . . . . . . . . . . . . Peak Influence 3552 | 10 135 58 370 202 . 87 751 2482 1913 2784 1461 1449 767 2697 965 1744 3552 2026 958 881 Initial 1988 | . . 46 14 142 . . 5 447 1302 1329 1461 951 760 294 941 607 846 1988 781 286 Average 825 | 1 41 17 95 29 . 18 321 1429 1426 2069 1405 1258 688 1111 926 956 1374 1936 895 645 Influence Increases 20034 | 25 509 116 1164 90 . 236 1660 2065 1433 1595 88 518 205 3374 67 1671 3442 273 296 1207 Destroy 0b10 Robot/C 9280 | . 300 80 540 60 . 120 1040 720 880 600 . 300 80 1740 . 520 1620 160 80 440 Destroy 0b10 Robot/NC 1325 | 25 40 . 160 20 . 25 105 . 75 45 15 5 20 395 . 160 85 10 45 95 Destroy Leader 1592 | . 74 20 176 10 . 20 268 20 164 40 2 30 30 374 . 128 124 . . 112 Allied During Kill 2532 | . . 16 42 . . . 19 11 32 . . . . 20 . 675 1371 82 69 195 Successful Hack 378 | . 20 . 45 . . 11 25 . 24 32 37 . . 131 . . 22 . . 31 Select Force Hacks 180 | . 60 . 90 . . . . . . . . . . 30 . . . . . . Disable Machine 1005 | . . . 75 . . . 105 30 135 30 30 30 30 255 . 15 30 . 75 165 Anti-Garrison Action 1900 | . . . . . . . . 1150 . 650 . 100 . . . . . . . . Destroy Structure 1632 | . . . 36 . . 60 83 134 78 138 4 53 45 384 67 158 175 21 27 169 Lose Combat Pursuer 210 | . 15 . . . . . 15 . 45 60 . . . 45 . 15 15 . . . Influence Decreases 19205 | 25 389 198 835 457 . 221 986 272 2016 710 1513 428 1053 1284 1890 811 1618 1872 1430 1197 Entered New Map 11214 | . . 74 24 225 . . 10 242 1180 570 1323 408 689 307 1750 261 882 1564 1172 533 Time Decay 5680 | 25 369 124 680 232 . 201 546 . 506 . 190 . 254 767 140 350 416 238 238 404 Lost Part 810 | . 20 . 10 . . 20 100 30 190 140 . 20 10 110 . . 70 30 . 60 Lost Ally 990 | . . . 60 . . . 30 . 140 . . . 100 100 . 200 250 40 20 50 Purge Threat 511 | . . . 61 . . . 300 . . . . . . . . . . . . 150 Squads Dispatched 98 | . 5 . 4 . . . 13 . 14 . . . 1 34 . 6 12 . . 9 Investigation 15 | . 3 . 3 . . . 3 . . . . . . 3 . . 1 . . 2 Extermination 17 | . . . . . . . . . 2 . . . 1 11 . 2 . . . 1 Reinforcement 31 | . 2 . 1 . . . 2 . 4 . . . . 12 . 4 1 . . 5 Assault 26 | . . . . . . . 2 . 5 . . . . 8 . . 10 . . 1 Garrison 9 | . . . . . . . 6 . 3 . . . . . . . . . . . Intercept . | . . . . . . . . . . . . . . . . . . . . . Searches Triggered . | . . . . . . . . . . . . . . . . . . . . . Construction Impeded 10 | . . . . . . . . . 2 . . . . 3 . 3 1 . . 1 Haulers Reinforced 6 | . . . . . . . . . 1 . . . . 4 . . . . . 1 Active Scanning Responses . | . . . . . . . . . . . . . . . . . . . . . Cargo Convoy Interrupts 1 | . . . . . . . . . . . . . . 1 . . . . . . Stealth | -11 -10 -10 -9 -9 -9 -8 -8 -8 -7 -7 -7 -7 -7 -6 -6 -6 -6 -6 -6 -6 --------- Run | Yrd Mat Min Mat Min Exi Min Mat Gar Fac Gar Fac Gar Fac Fac Was Fac Ext Cet Arc Hub Distress Signals 18 | . 2 . 3 . . . . . 2 . 1 . . 5 . 1 . 2 . 2 Communications Jammed . | . . . . . . . . . . . . . . . . . . . . . Distress Signals . | . . . . . . . . . . . . . . . . . . . . . Times Spotted 599 | . 29 4 34 3 . 7 59 29 54 33 2 16 19 123 6 29 92 10 13 37 Peak Tracking Total 22 | . 3 2 4 3 . 3 7 3 9 5 1 4 10 9 2 5 22 5 2 10 Tactical Retreats 13 | . 1 . . . . . 1 . 3 2 . . 1 3 . 1 1 . . . Traps | -11 -10 -10 -9 -9 -9 -8 -8 -8 -7 -7 -7 -7 -7 -6 -6 -6 -6 -6 -6 -6 ------- Run | Yrd Mat Min Mat Min Exi Min Mat Gar Fac Gar Fac Gar Fac Fac Was Fac Ext Cet Arc Hub Traps Triggered 22 | . 5 . 1 . . . 1 4 . 3 . 1 1 3 . . 3 . . . Indirectly . | . . . . . . . . . . . . . . . . . . . . . Trap Hack Attempts . | . . . . . . . . . . . . . . . . . . . . . Triggered . | . . . . . . . . . . . . . . . . . . . . . Disarmed . | . . . . . . . . . . . . . . . . . . . . . Reprogrammed 6 | . . . . . . . 6 . . . . . . . . . . . . . Reused . | . . . . . . . . . . . . . . . . . . . . . Traps Extracted . | . . . . . . . . . . . . . . . . . . . . . Installed . | . . . . . . . . . . . . . . . . . . . . . Triggered . | . . . . . . . . . . . . . . . . . . . . . Machines | -11 -10 -10 -9 -9 -9 -8 -8 -8 -7 -7 -7 -7 -7 -6 -6 -6 -6 -6 -6 -6 ---------- Run | Yrd Mat Min Mat Min Exi Min Mat Gar Fac Gar Fac Gar Fac Fac Was Fac Ext Cet Arc Hub Machines Disabled 85 | . . . 5 . . . 7 9 9 7 2 4 2 17 . 1 5 1 5 11 Max in Single Turn 4 | . . . 2 . . . 2 1 4 1 1 1 1 4 . . 2 1 1 2 Garrison Access 1 | . . . . . . . . . . . . . . . . 1 . . . . Garrison Relay 12 | . . . . . . . . 5 . 5 . 2 . . . . . . . . Phase Generator 1 | . . . . . . . . 1 . . . . . . . . . . . . Network Hub 1 | . . . . . . . . . . . . . . . . . . . . 1 Machines Repaired . | . . . . . . . . . . . . . . . . . . . . . Machines Dismantled . | . . . . . . . . . . . . . . . . . . . . . Machines Sabotaged . | . . . . . . . . . . . . . . . . . . . . . Overloaded Fab Kills . | . . . . . . . . . . . . . . . . . . . . . Hacking | -11 -10 -10 -9 -9 -9 -8 -8 -8 -7 -7 -7 -7 -7 -6 -6 -6 -6 -6 -6 -6 --------- Run | Yrd Mat Min Mat Min Exi Min Mat Gar Fac Gar Fac Gar Fac Fac Was Fac Ext Cet Arc Hub Machines Accessed 103 | . 9 . 16 1 1 1 18 3 5 3 4 1 . 21 . 1 8 . . 11 Terminals 68 | . 6 . 10 . . 1 12 3 1 3 3 1 . 9 . . 8 . . 11 Fabricators 3 | . . . . . . . . . 1 . . . . 2 . . . . . . Repair Stations 9 | . 1 . 2 . . . 2 . 1 . . . . 3 . . . . . . Recycling Units 11 | . 2 . 2 . . . 1 . 1 . . . . 5 . . . . . . Scanalyzers 5 | . . . 2 . . . 2 . . . . . . 1 . . . . . . Garrison Access 5 | . . . . . . . 1 . 1 . 1 . . 1 . 1 . . . . Total Hacks 391 | . 31 . 67 1 23 3 71 6 15 3 9 1 . 103 . 2 20 . . 36 Successful 271 | . 20 . 51 1 23 2 51 1 11 2 3 . . 65 . 1 13 . . 27 Failed 116 | . 10 . 15 . . 1 19 5 4 1 6 1 . 38 . 1 7 . . 8 Catastrophic 13 | . 1 . . . . . 1 2 1 1 2 . . 4 . . 1 . . . Database Lockouts 4 | . 1 . 1 . . . 1 . . . . . . . . . . . . 1 Manual 218 | . 25 . 44 . . 3 46 . 8 . 8 . . 45 . . 10 1 . 28 Terminals 223 | . 25 . 36 . . 3 47 6 4 3 8 1 . 34 . . 20 . . 36 Fabricators 16 | . . . . . . . . . 5 . . . . 11 . . . . . . Repair Stations 36 | . 4 . 10 . . . 7 . 2 . . . . 13 . . . . . . Recycling Units 30 | . 2 . 7 . . . 2 . 3 . . . . 16 . . . . . . Scanalyzers 51 | . . . 14 . . . 11 . . . . . . 26 . . . . . . Garrison Access 11 | . . . . . . . 4 . 1 . 1 . . 3 . 2 . . . . Terminal Hacks 81 | . 10 . 7 1 23 2 10 1 . 2 . . . 6 . . 10 . . 9 Record 23 | . . . . . 23 . . . . . . . . . . . . . . . Part Schematic 1 | . . . . . . 1 . . . . . . . . . . . . . . Robot Schematic 2 | . 1 . . . . . . . . . . . . . . . . . . 1 Robot Analysis 21 | . 8 . 2 . . 1 3 . . . . . . 3 . . 3 . . 1 Prototype ID Bank 12 | . 1 . 3 . . . 3 . . . . . . 2 . . 1 . . 2 Open Door 8 | . . . . 1 . . . 1 . . . . . . . . 6 . . . Level Access Points 1 | . . . . . . . . . . . . . . . . . . . . 1 Terminal Index 2 | . . . . . . . 1 . . . . . . . . . . . . 1 Unreport Threat 5 | . . . 2 . . . 2 . . . . . . . . . . . . 1 Reprogram Traps 1 | . . . . . . . 1 . . . . . . . . . . . . . Recall Investigation 1 | . . . . . . . . . . . . . . . . . . . . 1 Zone Layout 2 | . . . . . . . . . . . . . . 1 . . . . . 1 Garrison Registry 1 | . . . . . . . . . . 1 . . . . . . . . . . Patrol Navigation 1 | . . . . . . . . . . 1 . . . . . . . . . . Fabricator Hacks 5 | . . . . . . . . . 4 . . . . 1 . . . . . . Network Status 1 | . . . . . . . . . . . . . . 1 . . . . . . Load Schematic 2 | . . . . . . . . . 2 . . . . . . . . . . . Build 2 | . . . . . . . . . 2 . . . . . . . . . . . Repair Station Hacks 23 | . 4 . 7 . . . 3 . 1 . . . . 8 . . . . . . Scan Component 13 | . 2 . 4 . . . 2 . 1 . . . . 4 . . . . . . Repair 10 | . 2 . 3 . . . 1 . . . . . . 4 . . . . . . Recycling Unit Hacks 5 | . . . . . . . . . . . . . . 5 . . . . . . Process 1 | . . . . . . . . . . . . . . 1 . . . . . . Retrieve Matter 1 | . . . . . . . . . . . . . . 1 . . . . . . Retrieve Components 3 | . . . . . . . . . . . . . . 3 . . . . . . Scanalyzer 44 | . . . 12 . . . 10 . . . . . . 22 . . . . . . Insert Component 15 | . . . 5 . . . 4 . . . . . . 6 . . . . . . Analyze 20 | . . . 7 . . . 5 . . . . . . 8 . . . . . . Retrieve Study 9 | . . . . . . . 1 . . . . . . 8 . . . . . . Garrison Access Hacks 4 | . . . . . . . 1 . 1 . 1 . . . . 1 . . . . Unlock Access 3 | . . . . . . . 1 . 1 . 1 . . . . . . . . . Seal Access 1 | . . . . . . . . . . . . . . . . 1 . . . . Unauthorized Hacks 109 | . 6 . 25 . . . 27 . 5 . 2 . . 23 . . 3 . . 18 Terminals 83 | . 4 . 20 . . . 21 . 3 . 2 . . 12 . . 3 . . 18 Track 10 | . . . 2 . . . 3 . 1 . . . . 1 . . 1 . . 2 Assimilate 3 | . . . . . . . 1 . . . . . . . . . . . . 2 Botnet 33 | . 4 . 9 . . . 7 . 1 . . . . 5 . . 2 . . 5 Disrupt 4 | . . . 3 . . . . . . . . . . . . . . . . 1 Operators 4 | . . . 1 . . . 1 . 1 . . . . . . . . . . 1 Skim 29 | . . . 5 . . . 9 . . . 2 . . 6 . . . . . 7 Fabricators 5 | . . . . . . . . . . . . . . 5 . . . . . . Report 1 | . . . . . . . . . . . . . . 1 . . . . . . Prioritize 1 | . . . . . . . . . . . . . . 1 . . . . . . Liberate 2 | . . . . . . . . . . . . . . 2 . . . . . . Haulers 1 | . . . . . . . . . . . . . . 1 . . . . . . Repair Stations 4 | . . . 1 . . . 2 . . . . . . 1 . . . . . . Mechanics 1 | . . . 1 . . . . . . . . . . . . . . . . . Patch 3 | . . . . . . . 2 . . . . . . 1 . . . . . . Recycling Units 13 | . 2 . 3 . . . 2 . 2 . . . . 4 . . . . . . Reject 4 | . . . . . . . 1 . 1 . . . . 2 . . . . . . Recyclers 4 | . . . 1 . . . 1 . 1 . . . . 1 . . . . . . Mask 1 | . . . . . . . . . . . . . . 1 . . . . . . Tunnel 4 | . 2 . 2 . . . . . . . . . . . . . . . . . Scanalyzers 2 | . . . 1 . . . . . . . . . . 1 . . . . . . Extract 2 | . . . 1 . . . . . . . . . . 1 . . . . . . Garrison Access 2 | . . . . . . . 2 . . . . . . . . . . . . . Reprogram 1 | . . . . . . . 1 . . . . . . . . . . . . . Intercept 1 | . . . . . . . 1 . . . . . . . . . . . . . Data Cores Recovered 5 | . . . 2 . . . . . 1 . . . . 1 . . . . . 1 Used 2 | . . . 1 . . . . . . . . . . . . . . . . 1 Hacking Detections 75 | . 6 . 13 . . 1 17 2 3 2 3 1 . 16 . . 3 . . 8 Full Trace Events 4 | . . . 1 . . . 1 1 . . . . . 1 . . . . . . Feedback Events . | . . . . . . . . . . . . . . . . . . . . . Feedback Blocked 1 | . . . . . . . 1 . . . . . . . . . . . . . Robot Schematics Acquired 2 | . 1 . . . . . . . . . . . . . . . . . . 1 Robots Built 2 | . . . . . . . . . 2 . . . . . . . . . . . Authchips 2 | . . . . . . . . . 2 . . . . . . . . . . . Time 80 | . . . . . . . . . 80 . . . . . . . . . . . Total Robot Build Rating 2 | . . . . . . . . . 2 . . . . . . . . . . . Part Schematics Acquired 18 | . . . 7 . . 1 4 . . . . . . 6 . . . . . . Parts Built . | . . . . . . . . . . . . . . . . . . . . . Authchips . | . . . . . . . . . . . . . . . . . . . . . Time . | . . . . . . . . . . . . . . . . . . . . . Total Part Build Rating . | . . . . . . . . . . . . . . . . . . . . . Part Studies Acquired 9 | . . . . . . . 1 . . . . . . 8 . . . . . . Parts Repaired 9 | . 2 . 3 . . . 1 . . . . . . 3 . . . . . . Time 330 | . 52 . 90 . . . 44 . . . . . . 144 . . . . . . Parts Recycled . | . . . . . . . . . . . . . . . . . . . . . Recycled Matter 263 | . . . . . . . . . . . . . . 263 . . . . . . Retrieved Matter 263 | . . . . . . . . . . . . . . 263 . . . . . . Retrieved Components 16 | . . . . . . . . . . . . . . 16 . . . . . . Parts Scanalyzed 15 | . . . 5 . . . 4 . . . . . . 6 . . . . . . Part Schematics Acquired 15 | . . . 5 . . . 4 . . . . . . 6 . . . . . . Parts Damaged 2 | . . . . . . . 1 . . . . . . 1 . . . . . . Bothacking | -11 -10 -10 -9 -9 -9 -8 -8 -8 -7 -7 -7 -7 -7 -6 -6 -6 -6 -6 -6 -6 ------------ Run | Yrd Mat Min Mat Min Exi Min Mat Gar Fac Gar Fac Gar Fac Fac Was Fac Ext Cet Arc Hub Used RIF Installer . | . . . . . . . . . . . . . . . . . . . . . Robots Hacked . | . . . . . . . . . . . . . . . . . . . . . Non-combat . | . . . . . . . . . . . . . . . . . . . . . Combat . | . . . . . . . . . . . . . . . . . . . . . Robot Hacks Applied . | . . . . . . . . . . . . . . . . . . . . . Relay Couplers Released 57 | . . . . . . . . 22 3 21 . 8 . . . 3 . . . . Machine Destruction 51 | . . . . . . . . 22 . 21 . 8 . . . . . . . . Programmers 6 | . . . . . . . . . 3 . . . . . . 3 . . . . Fabnet Peak Effective % . | . . . . . . . . . . . . . . . . . . . . . Robots Rewired 12 | . . . . . . . . 2 . . . . . . . . 10 . . . Allies Hacked 1 | . . . . . . . . . . . . . . . . . 1 . . . Hacks Repelled 1 | . . . . . . . . . . . . . . . . 1 . . . . Allies | -11 -10 -10 -9 -9 -9 -8 -8 -8 -7 -7 -7 -7 -7 -6 -6 -6 -6 -6 -6 -6 -------- Run | Yrd Mat Min Mat Min Exi Min Mat Gar Fac Gar Fac Gar Fac Fac Was Fac Ext Cet Arc Hub Total Allies 60 | . . 3 . . . . 2 3 2 . . . . 5 19 . 20 5 . 1 Largest Group 19 | . . 3 3 . . . 2 3 4 . . . . 3 19 19 17 5 3 2 Highest-Rated Group 702 | . . 40 40 . . . 25 67 72 . . . . 87 702 702 649 480 281 192 Highest-Rated Ally 159 | . . 16 16 . . . 16 31 31 . . . . 32 50 50 159 147 96 96 Initial Warlord ECA Mod 22 | . . . . . . . . . 11 11 20 20 22 21 21 21 21 21 21 21 Total Orders 69 | . . . . 1 . 2 11 1 16 . 1 1 3 21 . 7 1 . 2 2 STAY 7 | . . . . . . . 3 . 2 . . . . . . . . . 1 1 FOLLOW 7 | . . . . . . . 3 . 1 . . . . 1 . . . . 1 1 EXPLORE 28 | . . . . . . 1 . . 8 . 1 . 1 12 . 5 . . . . RETURN 27 | . . . . 1 . 1 5 1 5 . . 1 2 8 . 2 1 . . . Ally Attacks 550 | . . 10 31 . . . 16 6 25 . . . . 15 13 125 228 27 11 43 Total Damage 15544 | . . 100 338 . . . 170 105 374 . . . . 322 189 5671 4872 905 409 2089 Kills 131 | . . 2 7 . . . 2 2 4 . . . . . 1 49 43 4 2 15 Allies Corrupted 6 | . . . . . . . . . 3 . . . 1 . . 2 . . . . Allies Melted 3 | . . . . . . . . . . . . . . 1 . . 1 . . 1 Intel | -11 -10 -10 -9 -9 -9 -8 -8 -8 -7 -7 -7 -7 -7 -6 -6 -6 -6 -6 -6 -6 ------- Run | Yrd Mat Min Mat Min Exi Min Mat Gar Fac Gar Fac Gar Fac Fac Was Fac Ext Cet Arc Hub Active Infowar (turns) 14215 | 76 887 . . . . . 3436 1845 721 57 . . . 2845 287 745 1300 518 519 979 Optics 7191 | . . . . . . . . . . . . . . 2843 287 745 1300 518 519 979 Terrain 965 | 76 887 . . . . . . . . . . . . . . 2 . . . . Structural 110 | . . . . . . . . . . . . . . 5 105 . . . . . Traps 6059 | . . . . . . . 3436 1845 721 57 . . . . . . . . . . Machine Analysis 2 | . . . . . . . . . . . . . . 2 . . . . . . ECM 2 | . . . . . . . . . . . . . . 2 . . . . . . Robot Analysis Total 21 | . 8 . 2 . . 1 3 . . . . . . 3 . . 3 . . 1 Derelict Logs Recovered 3 | . . 1 . 2 . . . . . . . . . . . . . . . . Drone Launches 80 | . . . . 2 . 1 10 1 15 . 2 . 20 23 . 5 1 . . . Drone Recoveries 60 | . . . . 1 . 2 10 1 9 . 1 1 9 21 . 4 1 . . . Exploration | -11 -10 -10 -9 -9 -9 -8 -8 -8 -7 -7 -7 -7 -7 -6 -6 -6 -6 -6 -6 -6 ------------- Run | Yrd Mat Min Mat Min Exi Min Mat Gar Fac Gar Fac Gar Fac Fac Was Fac Ext Cet Arc Hub Turns Passed 30204 | 155 1531 347 2928 1605 724 1326 4629 2976 1370 2302 396 638 555 4324 287 795 1300 518 519 979 Spaces Moved 14519 | 68 719 198 1528 648 295 490 1708 1115 559 1201 236 281 282 2538 185 375 878 207 312 696 Core 7 | 7 . . . . . . . . . . . . . . . . . . . . Treads 9472 | 61 719 198 1528 648 295 490 1708 1115 467 675 236 281 282 769 . . . . . . Legs 4422 | . . . . . . . . . . . . . . 1769 185 375 878 207 312 696 Wheels 618 | . . . . . . . . . 92 526 . . . . . . . . . . Hover . | . . . . . . . . . . . . . . . . . . . . . Flight . | . . . . . . . . . . . . . . . . . . . . . Fastest Speed 50 | 50 160 160 160 240 240 240 240 240 120 115 160 160 160 100 100 100 100 92 100 105 Average Speed 168 | 148 160 160 160 240 240 240 240 240 169 143 160 160 160 122 103 167 101 149 110 111 Slowest Speed 480 | 160 160 160 160 240 240 240 400 240 480 240 160 160 160 240 183 180 179 177 112 112 Overloaded Moves . | . . . . . . . . . . . . . . . . . . . . . Propulsion Burnouts . | . . . . . . . . . . . . . . . . . . . . . Robots Hopped . | . . . . . . . . . . . . . . . . . . . . . Potential Cave-ins . | . . . . . . . . . . . . . . . . . . . . . Cave-ins Triggered . | . . . . . . . . . . . . . . . . . . . . . Exploration Rate (%) 63 | 4 97 52 90 91 59 91 94 94 26 84 9 42 23 51 92 14 88 71 96 66 Regions Visited 20 Branch Regions 8 Pre-discovered Areas 9 | . 2 . 2 1 1 . 2 . . . . . . . . . . . . 1 Known Exits Taken 8 | . . . 1 1 . 1 1 . 1 . 1 . 1 . . 1 . . . . Unknown Exits Taken 7 | 1 1 1 . . 1 . . . . . . . . . . . 1 1 1 . Scrap Searched 5 | . . . . 2 . 3 . . . . . . . . . . . . . . Spaces Dug 21 | . . . 2 . . . 1 . . . . . 3 9 . . 3 . . 3 Terrain Destroyed 1849 | . . . 31 . . 86 89 147 92 79 4 41 49 465 146 30 316 14 35 225 Melee 4 | . . . 2 . . . . . . . . . . . . . . . . 2 Projectile 418 | . . . . . . . 6 2 14 30 4 41 12 123 10 30 56 14 35 41 AOE 1427 | . . . 29 . . 86 83 145 78 49 . . 37 342 136 . 260 . . 182 Terrain Rammed . | . . . . . . . . . . . . . . . . . . . . . Walls Destroyed . | . . . . . . . . . . . . . . . . . . . . . Machines Disabled . | . . . . . . . . . . . . . . . . . . . . . Actions | -11 -10 -10 -9 -9 -9 -8 -8 -8 -7 -7 -7 -7 -7 -6 -6 -6 -6 -6 -6 -6 --------- Run | Yrd Mat Min Mat Min Exi Min Mat Gar Fac Gar Fac Gar Fac Fac Was Fac Ext Cet Arc Hub Total 17769 | 95 937 212 1811 668 313 588 2041 1278 751 1517 246 389 350 3202 240 450 1106 355 420 800 Wait 859 | . 93 2 76 . . 53 56 6 7 18 3 49 39 169 26 20 83 74 54 31 Move 14502 | 67 718 197 1527 647 294 489 1707 1114 559 1200 236 280 281 2538 184 374 877 206 311 696 Hop . | . . . . . . . . . . . . . . . . . . . . . Pick Up 262 | 2 16 3 52 3 6 4 37 8 18 28 . 3 5 46 3 4 2 13 5 4 Fast Attach 104 | 7 3 1 5 . 4 1 6 7 6 16 . 2 . 23 . . 5 7 9 2 Attach 107 | . 1 . 5 . . 1 13 5 21 22 . 2 1 23 . 2 4 4 . 3 Detach 48 | . 1 . 2 . . . 5 4 4 11 . 1 . 15 . . 1 3 . 1 Swap 359 | . 3 . 22 4 2 15 75 29 29 11 1 5 3 96 10 8 16 10 4 16 Drop 217 | . 8 . 28 2 7 3 37 10 11 28 . 3 3 45 3 5 2 9 11 2 Fire 1214 | 19 94 9 92 12 . 21 105 72 96 158 6 44 18 247 14 35 77 29 26 40 Melee 4 | . . . 2 . . . . . . . . . . . . . . . . 2 Ram . | . . . . . . . . . . . . . . . . . . . . . Kick 5 | . . . . . . . . . . . . . . . . 1 1 . . 3 Crush 1 | . . . . . . 1 . . . . . . . . . . . . . . Escape Stasis 42 | . . . . . . . . 8 . 24 . . . . . . 10 . . . Rewire 45 | . . . . . . . . 15 . 1 . . . . . 1 28 . . . Trap . | . . . . . . . . . . . . . . . . . . . . . Miscellaneous . | . . . . . . . . . . . . . . . . . . . . . Route ------- -11/Scrapyard -10/Materials (discovered 5 exits: *Mat x2 / [*Min x2] / [*Sub]) -10/Mines (discovered 2 exits: *Mat x2) -9/Materials (discovered 4 exits: *Mat x3 / *Min) -9/Mines (discovered 4 exits: *Mat x2 / *Exi / *Zio) -9/Exiles -8/Mines (discovered 2 exits: *Mat x2) -8/Materials (discovered 6 exits: *Fac x3 / *Sto x2 / Gar) -8/Garrison (discovered 3 exits: *Fac x3) -7/Factory (discovered 4 exits: *Fac x2 / Low / Gar) -7/Garrison (discovered 4 exits: *Fac x4) -7/Factory -7/Garrison -7/Factory -6/Factory (discovered 2 exits: *Fac / *Low) -6/Waste -6/Factory (discovered 2 exits: *Fac / *Ext) -6/Extension (discovered 2 exits: *Fac / *Cet) -6/Cetus (discovered 2 exits: *Fac / [*Arc]) -6/Archives (discovered 3 exits: *Fac / *Hub x2) -6/Hub_04(d) (discovered 4 exits: *Fac x4) History --------- Turn | Location | Event 8 | -11/Scrapyard | Discovered new exit (range 16) 156 | -11/Scrapyard | Entered Materials 317 | -10/Materials | Build established: Mutant 650 | -10/Materials | Discovered new exit (range 7) 766 | -10/Materials | Discovered new exit (range 14) 866 | -10/Materials | Discovered new exit (range 9) 1072 | -10/Materials | Repaired Lgt. Treads 1099 | -10/Materials | Repaired Lgt. Treads 1196 | -10/Materials | Central database locked down 1462 | -10/Materials | Discovered new exit (range 10) 1624 | -10/Materials | Discovered new exit (range 9) 1687 | -10/Materials | Entered Mines 1702 | -10/Mines | Assisted by bots powering up and referring to "LRC-V3" 1729 | -10/Mines | Discovered new exit (range 8) 1732 | -10/Mines | Learned 8 Materials zone layouts 1774 | -10/Mines | Found a damaged Exp. Sensor Array with a note attached 1777 | -10/Mines | Found Prototype Device 1879 | -10/Mines | A weapon hastily lodged in a ceiling crevice suddenly fell to the ground 1996 | -10/Mines | Discovered new exit (range 3) 2029 | -10/Mines | Assembled infested the area 2034 | -10/Mines | Assisted by a Guerilla fighting off Assembled 2034 | -10/Mines | Entered Materials 2034 | -9/Materials | Accompanied by 3 allies 2034 | -9/Materials | Evolved 2 slots: Weapon x2 2035 | -9/Materials | Identified exit to Mines 2035 | -9/Materials | Identified exit to Materials 2220 | -9/Materials | Discovered exit to Materials (range 13) 2346 | -9/Materials | Build established: Scavenger-Gunner 2422 | -9/Materials | Central database locked down 2476 | -9/Materials | Repaired Lgt. Treads 2970 | -9/Materials | Identified Exp. Sensor Array 3576 | -9/Materials | Learned Storage stockpile data 3738 | -9/Materials | Loaded intel: 13 trap records 3771 | -9/Materials | Learned Storage trap positions 3812 | -9/Materials | Learned Storage emergency access door positions 4286 | -9/Materials | Repaired Hvy. Assault Rifle 4326 | -9/Materials | Repaired Shotgun 4642 | -9/Materials | Build established: Gunner 4962 | -9/Materials | Entered Mines 4977 | -9/Mines | Met a Derelict bent on vengeance 5046 | -9/Mines | Found the Drone Emporium 5057 | -9/Mines | Found Prototype Device 5057 | -9/Mines | Identified Sensor Drone Bay 5285 | -9/Mines | Learned location of Storage (-8) 5348 | -9/Mines | A Derelict revealed a hidden shortcut to a safe place 5630 | -9/Mines | Joined a pair of Derelicts in attacking an 0b10 outpost 6014 | -9/Mines | Identified exit to Zion 6043 | -9/Mines | Identified exit to Exiles 6077 | -9/Mines | Deemed a non-threat by the Exiles lab entrance 6567 | -9/Mines | Entered Exiles 6567 | -9/Exiles | Accompanied by 1 ally 6613 | -9/Exiles | Discovered new exit (range 18) 6632 | -9/Exiles | Met 8R-AWN 6671 | -9/Exiles | Met EX-HEX 6805 | -9/Exiles | Met EX-DEC 6846 | -9/Exiles | Learned location of Zion (-7) 6913 | -9/Exiles | Build established: Mutant 7097 | -9/Exiles | Met EX-BIN 7291 | -9/Exiles | Entered Mines 7291 | -8/Mines | Accompanied by 1 ally 7503 | -8/Mines | Build established: Gunner 7943 | -8/Mines | Build established: Scavenger-Tank 8253 | -8/Mines | Discovered exit to Materials (range 32) 8617 | -8/Mines | Entered Materials 8617 | -8/Materials | Evolved 2 slots: Utility x2 8764 | -8/Materials | Discovered new exit (range 15) 8918 | -8/Materials | Build established: Scavenger-Skirmisher 9002 | -8/Materials | Discovered new exit (range 16) 10065 | -8/Materials | Discovered new exit (range 15) 10200 | -8/Materials | Repaired Broken Hvy. Assault Rifle 10456 | -8/Materials | Discovered new exit (range 14) 10510 | -8/Materials | Identified exit to Storage 10725 | -8/Materials | Watched by a mysterious "MATRIX" hacker 10945 | -8/Materials | Learned Storage emergency access door positions 10955 | -8/Materials | Discovered new exit (range 10) 11031 | -8/Materials | Learned Storage trap positions 11049 | -8/Materials | Build established: Skirmisher 11076 | -8/Materials | Learned location of 1 exit from Recycling 11120 | -8/Materials | Learned Factory fabricator intel 11155 | -8/Materials | Learned Storage trap positions 11547 | -8/Materials | Central database locked down 11817 | -8/Materials | First assault squad dispatched 11913 | -8/Materials | Garrison activated, responded to threat 11954 | -8/Materials | Build established: Gunner 12002 | -8/Materials | Identified exit to Garrison 12216 | -8/Materials | Garrison activated, responded to threat 12691 | -8/Materials | Core integrity fell below 50% 12727 | -8/Materials | Lost 9 parts (1p2n3u3w) 12731 | -8/Materials | Sterilization system engaged 12731 | -8/Materials | Non-combat units ordered to evacuate 12731 | -8/Materials | Destroyed 8 combat bots 12831 | -8/Materials | Combat units ordered to evacuate 12940 | -8/Materials | Build established: Scavenger-Gunner 13031 | -8/Materials | Ambient heat levels rising (+10) 13181 | -8/Materials | Ambient heat levels rising (+10) 13246 | -8/Materials | Entered Garrison 13282 | -8/Garrison | Build established: Gunner 13438 | -8/Garrison | Triggered checkpoint 13545 | -8/Garrison | Garrison Relay disabled 13704 | -8/Garrison | Triggered checkpoint 13818 | -8/Garrison | Discovered new exit (range 9) 13839 | -8/Garrison | Garrison Relay disabled 14047 | -8/Garrison | Garrison Relay disabled 14182 | -8/Garrison | Triggered checkpoint 14400 | -8/Garrison | Discovered new exit (range 10) 14561 | -8/Garrison | Build established: Scavenger-Gunner 14717 | -8/Garrison | Phase Generator disabled 14741 | -8/Garrison | Triggered checkpoint 14791 | -8/Garrison | Garrison Relay disabled 14985 | -8/Garrison | Triggered checkpoint 15048 | -8/Garrison | Triggered checkpoint 15118 | -8/Garrison | Triggered checkpoint 15161 | -8/Garrison | Garrison Relay disabled 15211 | -8/Garrison | Rescued a captive Derelict 15305 | -8/Garrison | Discovered new exit (range 10) 15852 | -8/Garrison | Identified exit to Factory 16222 | -8/Garrison | Entered Factory 16222 | -7/Factory | Accompanied by 3 allies 16222 | -7/Factory | Evolved 2 slots: Propulsion x2 16223 | -7/Factory | Identified exit to Lower Caves 16224 | -7/Factory | Loaded intel: 6 fabricator locations 16301 | -7/Factory | Discovered new exit (range 11) 16329 | -7/Factory | Fabricated O-16 Technician (x1) 16466 | -7/Factory | Fabricated O-16 Technician? 16622 | -7/Factory | First assault squad dispatched 16828 | -7/Factory | Lost 4 allies 16977 | -7/Factory | System corruption reached 10% 17012 | -7/Factory | Discovered new exit (range 71) 17181 | -7/Factory | Destroyed 13 combat bots 17241 | -7/Factory | Garrison activated, responded to threat 17314 | -7/Factory | Lost 8 parts (4n2u2w) 17397 | -7/Factory | Lost 5 parts (1u4w) 17423 | -7/Factory | Destroyed 7 combat bots 17592 | -7/Factory | Identified exit to Garrison 17592 | -7/Factory | Entered Garrison 17634 | -7/Garrison | Triggered checkpoint 17666 | -7/Garrison | System corruption reached 30% 17682 | -7/Garrison | Lost 8 parts (1p3n1u3w) 17691 | -7/Garrison | Garrison Relay disabled 17846 | -7/Garrison | Triggered checkpoint 17936 | -7/Garrison | Build established: Scavenger-Mutant 17994 | -7/Garrison | Triggered checkpoint 18004 | -7/Garrison | Core integrity fell below 50% 18066 | -7/Garrison | Triggered checkpoint 18102 | -7/Garrison | Destroyed 10 combat bots 18110 | -7/Garrison | Lost 3 parts (1n2w) 18123 | -7/Garrison | Discovered new exit (range 50) 18123 | -7/Garrison | Discovered new exit (range 26) 18123 | -7/Garrison | Discovered new exit (range 42) 18123 | -7/Garrison | Discovered new exit (range 30) 18539 | -7/Garrison | Build established: Scavenger-Gunner 18816 | -7/Garrison | Triggered checkpoint 18826 | -7/Garrison | Garrison Relay disabled 18844 | -7/Garrison | Garrison Relay disabled 18948 | -7/Garrison | Build established: Scavenger-Tank 19150 | -7/Garrison | Spotted B-75 Beast 19170 | -7/Garrison | Destroyed B-75 Beast 19238 | -7/Garrison | Triggered checkpoint 19255 | -7/Garrison | Garrison Relay disabled 19446 | -7/Garrison | Build established: Tank 19524 | -7/Garrison | Triggered checkpoint 19568 | -7/Garrison | Garrison Relay disabled 19894 | -7/Garrison | Entered Factory 20162 | -7/Factory | Build established: Gunner 20290 | -7/Factory | Identified exit to Garrison 20290 | -7/Factory | Entered Garrison 20290 | -7/Garrison | Accompanied by 1 ally 20392 | -7/Garrison | Garrison Relay disabled 20424 | -7/Garrison | Triggered checkpoint 20512 | -7/Garrison | Core integrity fell below 20% 20568 | -7/Garrison | Triggered checkpoint 20619 | -7/Garrison | Discovered new exit (range 10) 20663 | -7/Garrison | Triggered checkpoint 20665 | -7/Garrison | Build established: Scavenger-Gunner 20730 | -7/Garrison | Garrison Relay disabled 20928 | -7/Garrison | Entered Factory 21188 | -7/Factory | Assembled infested ambush trap array 21259 | -7/Factory | Lost 10 allies 21272 | -7/Factory | Discovered new exit (range 27) 21275 | -7/Factory | Identified exit to Factory 21483 | -7/Factory | Entered another Factory area 21483 | -6/Factory | Evolved 2 slots: Utility x2 21899 | -6/Factory | Build established: Gunner 22848 | -6/Factory | Build established: Scavenger-Gunner 22886 | -6/Factory | Cargo convoy interrupted 22921 | -6/Factory | Destroyed 9 combat bots 22927 | -6/Factory | Lost 3 parts (1n2u) 22954 | -6/Factory | Found Prototype Launcher 22955 | -6/Factory | Identified Tactical Quantum Warhead 22979 | -6/Factory | Found Prototype Launcher 22982 | -6/Factory | Identified Hellfire Missile Launcher 23005 | -6/Factory | Found Hellfire Missile Launcher 23094 | -6/Factory | Found PL-3XN's Ring of Power 23169 | -6/Factory | Repaired Hvy. Mass Driver 23194 | -6/Factory | Repaired Adv. Assault Cannon+ 23233 | -6/Factory | First assault squad dispatched 23369 | -6/Factory | Lost 3 allies 23410 | -6/Factory | Discovered new exit (range 15) 23446 | -6/Factory | Identified exit to Lower Caves 23489 | -6/Factory | Build established: Gunner 23773 | -6/Factory | Targeted by mysterious "MATRIX" hacker 23817 | -6/Factory | Repaired Adv. Assault Cannon+? 25066 | -6/Factory | Lost 3 parts (2u1w) 25300 | -6/Factory | Found Hellfire Missile Launcher 25312 | -6/Factory | Discovered new exit (range 15) 25807 | -6/Factory | Sucked down chute 25807 | -6/Factory | Entered Waste 25822 | -6/Waste | EMP discharged 25822 | -6/Waste | System corruption reached 10% 25822 | -6/Waste | Spotted C-40 Crusher 25829 | -6/Waste | Spotted C-40 Crusher 25830 | -6/Waste | Destroyed C-40 Crusher 25849 | -6/Waste | Destroyed C-40 Crusher 25856 | -6/Waste | Spotted C-40 Crusher 25858 | -6/Waste | Destroyed C-40 Crusher 25877 | -6/Waste | Spotted C-40 Crusher 25884 | -6/Waste | Spotted C-40 Crusher 25888 | -6/Waste | Destroyed C-40 Crusher 25900 | -6/Waste | Destroyed C-40 Crusher 25915 | -6/Waste | Spotted C-40 Crusher 25922 | -6/Waste | EMP discharged 25939 | -6/Waste | Discovered new exit (range 23) 25949 | -6/Waste | Met Warlord forces unprepared to attack 26022 | -6/Waste | EMP discharged 26040 | -6/Waste | Allies destroyed C-40 Crusher 26094 | -6/Waste | Entered Factory 26094 | -6/Factory | Accompanied by 19 allies 26288 | -6/Factory | Discovered new exit (range 52) 26309 | -6/Factory | Identified exit to Factory 26460 | -6/Factory | Lost 4 allies 26461 | -6/Factory | Build established: Hacker-Gunner 26679 | -6/Factory | Lost 4 allies 26769 | -6/Factory | Discovered new exit (range 20) 26832 | -6/Factory | P-60 Hacker assimilated allied QQ-BLG(g) 26885 | -6/Factory | Identified exit to Extension 26889 | -6/Factory | Entered Extension 26889 | -6/Extension | Accompanied by 4 allies 26972 | -6/Extension | Rescued a captive Derelict 27144 | -6/Extension | Core integrity fell below 50% 27157 | -6/Extension | System corruption reached 30% 27187 | -6/Extension | Rescued a captive Derelict 27197 | -6/Extension | Rescued a captive Derelict 27199 | -6/Extension | Rescued a captive Derelict 27221 | -6/Extension | Rescued A7 27239 | -6/Extension | First assault squad dispatched 27332 | -6/Extension | Rescued a captive Derelict 27333 | -6/Extension | Rescued a captive Derelict 27584 | -6/Extension | Spotted B-75 Beast 27595 | -6/Extension | Destroyed B-75 Beast 27604 | -6/Extension | Spotted B-75 Beast 27618 | -6/Extension | Allies destroyed B-75 Beast 27662 | -6/Extension | Lost 4 allies 27820 | -6/Extension | Rescued a captive Derelict 27904 | -6/Extension | High security lockdown imminent 27955 | -6/Extension | Rescued a captive Derelict 27958 | -6/Extension | Rescued a captive Derelict 27984 | -6/Extension | High security lockdown engaged 28062 | -6/Extension | Destroyed 15 combat bots 28092 | -6/Extension | Lost 6 allies 28116 | -6/Extension | Discovered exit to Factory (range 17) 28116 | -6/Extension | Discovered new exit (range 13) 28143 | -6/Extension | P-60 Hacker assimilated allied 56-WJO(h) 28160 | -6/Extension | Lost 9 allies 28169 | -6/Extension | Destroyed 22 combat bots 28176 | -6/Extension | Lost 5 parts (2n3w) 28189 | -6/Extension | Entered Cetus 28189 | -6/Cetus | Accompanied by 1 ally (A7) 28194 | -6/Cetus | Acquired a Cetus Manufacturing Module code from A7 28203 | -6/Cetus | Spotted Cetus Guard 28205 | -6/Cetus | Spotted Cetus Guard 28206 | -6/Cetus | Spotted Cetus Guard 28213 | -6/Cetus | Spotted Cetus Guard 28213 | -6/Cetus | Destroyed Cetus Guard 28216 | -6/Cetus | Allies destroyed Cetus Guard 28247 | -6/Cetus | Destroyed Cetus Guard 28262 | -6/Cetus | Destroyed Cetus Guard 28270 | -6/Cetus | Lost 3 parts (1n2w) 28272 | -6/Cetus | Extracted ID and sensor layout for unrecognized location from A7's data core 28422 | -6/Cetus | Started Cetus Manufacturing Module 28447 | -6/Cetus | Manufactured an Enhanced Grunt 28472 | -6/Cetus | Manufactured an Enhanced Grunt 28480 | -6/Cetus | Discovered new exit (range 23) 28497 | -6/Cetus | Manufactured an Enhanced Grunt 28522 | -6/Cetus | Manufactured an Enhanced Grunt 28547 | -6/Cetus | Manufactured an Enhanced Grunt 28582 | -6/Cetus | Spotted Cetus Guard 28582 | -6/Cetus | Spotted Cetus Guard 28582 | -6/Cetus | Spotted Cetus Guard 28582 | -6/Cetus | Spotted Cetus Guard 28597 | -6/Cetus | Destroyed Cetus Guard 28602 | -6/Cetus | Allies destroyed Cetus Guard 28604 | -6/Cetus | Build established: Scavenger-Gunner 28604 | -6/Cetus | Destroyed Cetus Guard 28607 | -6/Cetus | Allies destroyed Cetus Guard 28607 | -6/Cetus | Discovered exit to Factory (range 22) 28626 | -6/Cetus | Found Prototype Device 28626 | -6/Cetus | Identified Exp. Thermal Shield 28638 | -6/Cetus | Met Revision 17 28707 | -6/Cetus | Entered Archives 28707 | -6/Archives | Accompanied by 3 allies 28779 | -6/Archives | Discovered new exit (range 22) 28796 | -6/Archives | Discovered exit to Factory (range 17) 28838 | -6/Archives | Discovered new exit (range 18) 29226 | -6/Archives | Entered Hub_04(d) 29226 | -6/Hub_04(d) | Accompanied by 2 allies 29354 | -6/Hub_04(d) | Central database locked down 29386 | -6/Hub_04(d) | Core integrity fell below 20% 29892 | -6/Hub_04(d) | Build established: Scavenger-Tank 29926 | -6/Hub_04(d) | First assault squad dispatched 30016 | -6/Hub_04(d) | Learned 4 Upper Caves zone layouts 30047 | -6/Hub_04(d) | Learned Factory emergency access door positions 30067 | -6/Hub_04(d) | Learned 2 Upper Caves zone layouts 30079 | -6/Hub_04(d) | Learned 4 Proximity Caves zone layouts 30080 | -6/Hub_04(d) | Learned Factory machine intel 30084 | -6/Hub_04(d) | Learned location of 2 exits from Lower Caves 30096 | -6/Hub_04(d) | Learned location of 2 exits from Factory 30151 | -6/Hub_04(d) | Network Hub disabled 30184 | -6/Hub_04(d) | Spotted Lightning 30186 | -6/Hub_04(d) | Spotted Lightning 30197 | -6/Hub_04(d) | Spotted Lightning 30205 | -6/Hub_04(d) | Destroyed by H-61 Shepherd with Heavy Assault Cannon Last Messages --------------- 30151_ MU-CW9(x) destroyed. 30151_ U-05 Engineer destroyed. 30155_ Identified Imp. Signal Interpreter. 30160_ System corrupted: Heat flow error (+243). 30186_ EMDS Slug penetrates Wall. 30190_ ALERT: Suspicious intruders detected, dispatching Specialist reinforcements to area. 30191_ Penetrated by EMDS Slug. 30197_ EMDS Slug penetrates Wall. 30197_ Adv. KE Penetrator destroyed. 30197_ Slug penetrates Wall. 30198_ Kicked X-62 Marksman out of the way. 30200_ Penetrated by Slug. 30200_ Knocked back. 30202_ EMDS Slug penetrates Wall. 30202_ Adv. KE Penetrator destroyed. 30203_ Acquired 8 matter. 30203_ Penetrated by Slug. 30203_ Adv. KE Penetrator destroyed. 30204_ Penetrated by Slug. Map ----- +----------------------------------------------------+ | ?????????????????????????????????????????????????? | | ?????????????????????????????????????????????????? | | ?????????????????????????????????????????????????? | | ?????????????????????????????????????????????????? | | ?????????????????????????????????????????????????? | | ?????????????????????????????????????????????????? | | ?????????????????????????????????????????????????? | | ?????????????????????????????????????????????????? | | ?????????????????????????????????????????????????? | | ?????????????????????????????????????????????????? | | ?????????????????????????????????????????????????? | | ?????????????????????????????????????????????????? | | ?????????????????????????????????????????????????? | | ?????????????????????????????????????????????????? | | ?????????????????????????????????????????????????? | | ??######?######??????????????????????????????????? | | ??# #??????????????????????????????????? | | ??# " #??????????????????????????????????? | | ??# """ #??????????????????????????????????? | | ??# """"" #?????????????????????????????###### | | ??# """"""" #??????###########????????????# | | ??# """"" #??????# #????????????#" """ | | ??# """ #??????# #????????????#" """ | | ??# " #??????# #????????????#" """ | | ??# #??????# % #????????????#T """ | | ??# #??????# @< #????????????#" | | ???#####++#####??????# H #????????????#" | | ######## #??????????# x #????????????#" | | T # #????? ; #????????????# | | + #######+####x################?????###### | | """" # R # #??????????? | | """" # + """ #??????????? | | """" #####+####+##### # "G" #????####### | | """" ## ## #???# #?? " " #????# | | /%= ## ""## #???# #???? " #???# | | = "" ## T"## ##### # " " " ##???# | | " ## ""##! / " " " " #????# """" | | %" "" ## ## # # !#????# """" | | =""" ## " ##! # # " " " " " #????# """" | | [%! ##! " ## + #?" " " " " #????# """" | | [%" " ## " ## ###### #?" " " " " ??????# | | % """" ## ## #????# #?? ?????######## | | =["""" #########+##????# #???#######??????#"##??## | | !%"%"" ######### #?????# #????############## ##### | | !=[* ## ## #?????# #????# # | | =%!! ## " ##+#######/###??# " " " # T "" "" | | /#[###### "" # #??# " " " # """ "" | | ###??# # T" # * ""#??# " " " # """" "" | | ######"# "" # =""" ""#??# # """" "" | | "! "" # """" T"#??# " " " # | +----------------------------------------------------+ Best States ------------- Heat Dissipation 94 Coolant Potential 80 Energy Generation 25 Energy Capacity 350 Matter Stores 300 Matter Capacity 300 Sight Range 23 Terrain Scan Range 16 Terrain Scan Density 10 Corruption Containment 8 Armor Coverage 450 Resistance: KI 30 Resistance: TH 30 Core Shielding 30 Propulsion Shielding 33 Weapon Shielding 66 Weapon Cycling 30 Evasion (%) 55 Targeting Accuracy 16 Melee Accuracy 6 Target Analysis 5 Core Analysis 6 Armor Integrity Analysis 30 Recoil Reduction 8 Offensive Hacking 38 Defensive Hacking 14 Authchip Count 2 Item Schematics ----------------- Exp. Sensor Array | -9/Materials | Scanalyzed Hacking Suite | -9/Materials | Scanalyzed Adv. Weight Redist. System | -9/Materials | Scanalyzed Salvage Targeting Computer | -9/Materials | Extracted Visual Processing Unit | -9/Materials | Extracted Lrg. Storage Unit | -9/Materials | Scanalyzed Hcp. Matter Pod | -9/Materials | Scanalyzed Plasma Cutter | -8/Mines | Hacked Lgt. Fission Core | -8/Materials | Scanalyzed Assault Cannon | -8/Materials | Scanalyzed Adv. Targeting Computer | -8/Materials | Scanalyzed Recoil Stabilizer | -8/Materials | Scanalyzed Cmb. Airjet | -6/Factory | Scanalyzed Med. Reactive Plating | -6/Factory | Scanalyzed Imp. Weapon Cycler | -6/Factory | Scanalyzed Magnetic Acceleration Cannon | -6/Factory | Scanalyzed Matter Compressor | -6/Factory | Scanalyzed Imp. Coolant Injector | -6/Factory | Scanalyzed Robot Schematics ------------------ O-16 Technician | -10/Materials | Hacked W-25 Informer | -6/Hub_04(d) | Hacked Fabricated ------------ O-16 Technician | x1 | -7/Factory | Authchip O-16 Technician | x1 | -7/Factory | Authchip Repaired ---------- Lgt. Treads | 21% | -10/Materials Lgt. Treads | 60% | -10/Materials Lgt. Treads | 2% | -9/Materials Hvy. Assault Rifle | 4% | -9/Materials Shotgun | 73% | -9/Materials Hvy. Assault Rifle | 22% | -8/Materials | Broken Hvy. Mass Driver | 5% | -6/Factory Adv. Assault Cannon | 68% | -6/Factory Adv. Assault Cannon | 35% | -6/Factory Studied --------- Assault Cannon | -8/Materials | Hacked Rnf. Deuterium Engine | -6/Factory | Hacked Phase Cannon | -6/Factory | Hacked Cmb. Airjet | -6/Factory | Hacked Imp. Grenade Launcher | -6/Factory | Hacked Imp. Gravmag System | -6/Factory | Hacked Adv. Assault Cannon | -6/Factory | Hacked Magnetic Acceleration Cannon | -6/Factory | Hacked Gravmag Array | -6/Factory | Hacked Alien Tech Used ----------------- None Achievements -------------- None Challenges ------------ None Game ------ Seed StasisVoltaicStrikerail Manual? 0 Play Time 04:22:16 Cumulative 773.2 hours Start 2026.09.10 @ 14:11:24 End 2026.09.10 @ 21:24:12 Sessions 1 Manual Loads 0 Difficulty Rogue Special Mode None Game No. 378 Rogue 378 Adventurer 0 Explorer 0 Win Type - Total 7 Types 3/0/2/1/0/0/0/0/0/1 Lore% 86 Gallery% 77 Achievement% 61 Wizard Run 0 Options --------- Layout 2 ASCII 0 Keyboard 1 Movement Vi Keybinds 0 Fullscreen 1 Font 16/Proggy Map View 55x47 Zoom Use 0% Tactical HUD 1 Map Filters NONE Filters NONE Steam 0 RUN: b077aca5-fcdf-416a-bc4c-7f4bdb5d2754